fUST/lending_fUST_20250913
["ID","MTS","AMOUNT","RATE_DAILY","PERIOD"]
[385297937,1757755847979,-151.0,0.00023093,7]
[385297938,1757755847988,-1000.0,0.00023093,2]
[385297939,1757755847997,-196.934647,0.00023093,7]
[385297940,1757755848006,-151.0,0.00023093,7]
[385297941,1757755848015,-1000.0,0.00023093,2]
[385297942,1757755848025,-257.816932,0.00023093,7]
[385297943,1757755848034,-196.934647,0.00023093,7]
[385297944,1757755848044,-1000.0,0.00023093,2]
[385297945,1757755848053,-196.934647,0.00023093,7]
[385297946,1757755848062,-1000.0,0.00023093,2]
[385297947,1757755848071,-196.934647,0.00023093,7]
[385297948,1757755848081,-1000.0,0.00023093,2]
[385297949,1757755848089,-196.934647,0.00023093,7]
[385297950,1757755848098,-1000.0,0.00023093,2]
[385297951,1757755848108,-196.934647,0.00023093,7]
[385297952,1757755848117,-1000.0,0.00023093,2]
[385297953,1757755848127,-196.934647,0.00023093,7]
[385297954,1757755848137,-1000.0,0.00023093,2]
[385297955,1757755848147,-196.934648,0.00023093,7]
[385297956,1757755848157,-1000.0,0.00023093,2]
[385297957,1757755848166,-1000.0,0.00023093,2]
[385297958,1757755848176,-1000.0,0.00023093,2]
[385297959,1757755848186,-1000.0,0.00023093,2]
[385297960,1757755848196,-346.030008,0.00023093,7]
[385297961,1757755848206,-1000.0,0.00023093,2]
[385297962,1757755848215,-346.030008,0.00023093,7]
[385297963,1757755848224,-1000.0,0.00023093,2]
[385297964,1757755848235,-346.030008,0.00023093,7]
[385297965,1757755848251,-1000.0,0.00023093,2]
[385297966,1757755848261,-346.030008,0.00023093,7]
[385297967,1757755848271,-1000.0,0.00023093,2]
[385297968,1757755848280,-1000.0,0.00023093,2]
[385297969,1757755848290,-346.030008,0.00023093,7]
[385297970,1757755848299,-1000.0,0.00023093,2]
[385297971,1757755848308,-346.030008,0.00023093,7]
[385297972,1757755848317,-346.030008,0.00023093,7]
[385297973,1757755848327,-346.030008,0.00023093,7]
[385297974,1757755848336,-346.030008,0.00023093,7]
[385297975,1757755848346,-346.030008,0.00023093,7]
[385297976,1757755848355,-346.030008,0.00023093,7]
[385297977,1757755848364,-346.030008,0.00023093,7]
[385297978,1757755848374,-346.030008,0.00023093,7]
[385297979,1757755848384,-346.030008,0.00023093,7]
[385297980,1757755848394,-346.030008,0.00023093,7]
[385297981,1757755848403,-346.030008,0.00023093,7]
[385297982,1757755848412,-346.030008,0.00023093,7]
[385297983,1757755848422,-346.030008,0.00023093,7]
[385297984,1757755848431,-346.030008,0.00023093,7]
[385297985,1757755848440,-346.029999,0.00023093,7]
[385297986,1757755848450,-151.0,0.00023093,7]
[385297987,1757755848459,-151.0,0.00023093,7]
[385297988,1757755848468,-151.0,0.00023093,7]
[385297989,1757755848477,-155.864845,0.00023093,7]
[385297990,1757755848486,-151.0,0.00023093,7]
[385297991,1757755848495,-151.0,0.00023093,7]
[385297992,1757755848505,-151.0,0.00023093,7]
[385297993,1757755848514,-213.063548,0.00023093,7]
[385297994,1757755848523,-151.0,0.00023093,7]
[385297995,1757755848532,-151.0,0.00023093,7]
[385297996,1757755848542,-151.0,0.00023093,7]
[385297997,1757755848551,-151.0,0.00023093,7]
[385297998,1757755848560,-151.0,0.00023093,7]
[385297999,1757755848569,-151.0,0.00023093,7]
[385298000,1757755848578,-151.0,0.00023093,7]
[385298001,1757755848587,-151.0,0.00023093,7]
[385298002,1757755848596,-151.0,0.00023093,7]
[385298003,1757755848606,-151.0,0.00023093,7]
[385298004,1757755848615,-151.0,0.00023093,7]
[385298005,1757755848624,-500.0,0.00023287,2]
[385298006,1757755848634,-500.0,0.00023287,2]
[385298007,1757755848643,-500.0,0.00023287,2]
[385298008,1757755848653,-500.0,0.00023287,2]
[385298009,1757755848662,-500.0,0.00023287,2]
[385298010,1757755848672,-500.0,0.00023287,2]
[385298011,1757755848682,-500.0,0.00023287,2]
[385298012,1757755848691,-500.0,0.00023287,2]
[385298013,1757755848700,-250.04896946,0.000233,2]
[385298014,1757755848710,-157.0,0.00023367,2]
[385298015,1757755848719,-500.0,0.00023367,2]
[385298016,1757755848728,-510.51168756,0.00023367,2]
[385298017,1757755848737,-157.0,0.00023367,2]
[385298018,1757755848746,-500.0,0.00023367,2]
[385298019,1757755848755,-157.0,0.00023367,2]
[385298020,1757755848764,-157.0,0.00023367,2]
[385298021,1757755848773,-157.0,0.00023367,2]
[385298022,1757755848783,-500.0,0.00023367,2]
[385298023,1757755848793,-157.0,0.00023367,2]
[385298024,1757755848802,-157.0,0.00023367,2]
[385298025,1757755848812,-157.0,0.00023367,2]
[385298026,1757755848821,-303.40736968,0.00023367,2]
[385298027,1757755848830,-157.0,0.00023367,2]
[385298028,1757755848839,-157.0,0.00023367,2]
[385298029,1757755848848,-500.0,0.00023367,2]
[385298030,1757755848857,-157.0,0.00023367,2]
[385298031,1757755848867,-243.26612764,0.0002342,2]
[385298032,1757755848878,-4582.24368582,0.00023454,2]
[385298033,1757755848888,-500.0,0.0002347,2]
[385298034,1757755848897,-500.0,0.0002347,2]
[385298035,1757755848906,-500.0,0.0002347,2]
[385298036,1757755848916,-2030.296672,0.0002347,2]
[385298037,1757755848925,-500.0,0.00023553,2]
[385298038,1757755848935,-423.96247478,0.00023553,2]
[385298039,1757755848944,-300.0,0.00023554,20]
[385298040,1757755848954,-300.0,0.00023554,20]
[385298041,1757755848964,-300.0,0.00023554,20]
[385298042,1757755848974,-151.0,0.00023554,7]
[385298043,1757755848984,-153.02553,0.00023554,7]
[385298044,1757755848994,-151.0,0.00023554,7]
[385298045,1757755849003,-151.0,0.00023554,7]
[385298046,1757755849013,-151.0,0.00023554,7]
[385298047,1757755849023,-151.0,0.00023554,7]
[385298048,1757755849032,-151.758118,0.00023554,7]
[385298049,1757755849042,-151.0,0.00023554,7]
[385298050,1757755849052,-154.145847,0.00023554,7]
[385298051,1757755849061,-151.0,0.00023554,7]
[385298052,1757755849070,-151.0,0.00023554,7]
[385298053,1757755849079,-248.219809,0.00023554,7]
[385298054,1757755849088,-151.0,0.00023554,7]
[385298055,1757755849098,-151.0,0.00023554,7]
[385298056,1757755849108,-151.0,0.00023554,7]
[385298057,1757755849117,-151.0,0.00023554,7]
[385298058,1757755849127,-151.0,0.00023554,7]
[385298059,1757755849136,-151.0,0.00023554,7]
[385298060,1757755849146,-151.0,0.00023554,7]
[385298061,1757755849155,-199.819211,0.00023554,7]
[385298062,1757755849165,-151.0,0.00023554,7]
[385298063,1757755849174,-151.0,0.00023554,7]
[385298064,1757755849183,-151.0,0.00023554,7]
[385298065,1757755849193,-151.0,0.00023554,7]
[385298066,1757755849202,-151.0,0.00023554,7]
[385298067,1757755849211,-151.0,0.00023554,7]
[385298068,1757755849222,-151.0,0.00023554,7]
[385298069,1757755849231,-151.0,0.00023554,7]
[385298070,1757755849241,-151.0,0.00023554,7]
[385298071,1757755849250,-151.0,0.00023554,7]
[385298072,1757755849259,-151.0,0.00023554,7]
[385298073,1757755849269,-151.0,0.00023554,7]
[385298074,1757755849278,-181.295845,0.00023554,7]
[385298075,1757755849288,-151.0,0.00023554,7]
[385298076,1757755849297,-151.0,0.00023554,7]
[385298077,1757755849306,-151.0,0.00023554,7]
[385298078,1757755849316,-151.0,0.00023554,7]
[385298079,1757755849325,-151.0,0.00023554,7]
[385298080,1757755849336,-199.804758,0.00023554,7]
[385298081,1757755849347,-151.0,0.00023554,7]
[385298082,1757755849356,-151.0,0.00023554,7]
[385298083,1757755849365,-151.0,0.00023554,7]
[385298084,1757755849375,-177.882452,0.00023554,7]
[385298085,1757755849385,-177.882452,0.00023554,7]
[385298086,1757755849516,-151.0,0.00023554,7]
[385298087,1757755849526,-177.882452,0.00023554,7]
[385298088,1757755849535,-151.0,0.00023554,7]
[385298089,1757755849545,-151.0,0.00023554,7]
[385298090,1757755849555,-177.882452,0.00023554,7]
[385298091,1757755849565,-177.882452,0.00023554,7]
[385298092,1757755849575,-214.278696,0.00023554,7]
[385298093,1757755849584,-177.882452,0.00023554,7]
[385298094,1757755849594,-151.0,0.00023554,7]
[385298095,1757755849603,-151.0,0.00023554,7]
[385298096,1757755849614,-151.0,0.00023554,7]
[385298097,1757755849623,-177.882452,0.00023554,7]
[385298098,1757755849634,-177.882452,0.00023554,7]
[385298099,1757755849643,-177.882452,0.00023554,7]
[385298100,1757755849653,-177.882452,0.00023554,7]
[385298101,1757755849662,-177.882452,0.00023554,7]
[385298102,1757755849671,-177.88246,0.00023554,7]
[385298103,1757755849681,-151.0,0.00023554,2]
[385298104,1757755849691,-273.987629,0.00023554,2]
[385298105,1757755849701,-151.0,0.00023554,7]
[385298106,1757755849710,-151.0,0.00023554,7]
[385298107,1757755849720,-151.0,0.00023554,7]
[385298108,1757755849729,-1000.0,0.00023621,2]
[385298109,1757755849738,-157.0,0.00023641,2]
[385298110,1757755849747,-328.22675449,0.00023641,2]
[385298111,1757755849757,-157.0,0.00023641,2]
[385298112,1757755849767,-500.0,0.00023641,2]
[385298113,1757755849776,-157.0,0.00023641,2]
[385298114,1757755849786,-292.96060915,0.00023641,2]
[385298115,1757755849795,-157.0,0.00023641,2]
[385298116,1757755849804,-500.0,0.00023641,2]
[385298117,1757755849813,-157.0,0.00023641,2]
[385298118,1757755849823,-157.0,0.00023641,2]
[385298119,1757755849832,-212.14,0.00023641,2]
[385298120,1757755849841,-157.0,0.00023641,2]
[385298121,1757755849850,-157.0,0.00023641,2]
[385298122,1757755849859,-500.0,0.00023641,2]
[385298123,1757755849868,-157.0,0.00023641,2]
[385298124,1757755849877,-2869.46647421,0.00023647,2]
[385298125,1757755849887,-151.0,0.00023673,7]
[385298126,1757755849897,-151.0,0.00023673,7]
[385298127,1757755849906,-151.0,0.00023673,7]
[385298128,1757755849915,-151.0,0.00023673,7]
[385298129,1757755849925,-151.0,0.00023673,7]
[385298130,1757755849934,-151.0,0.00023673,7]
[385298131,1757755849943,-151.0,0.00023673,7]
[385298132,1757755849953,-219.107081,0.00023673,7]
[385298133,1757755849963,-151.0,0.00023673,7]
[385298134,1757755849972,-151.0,0.00023673,7]
[385298135,1757755849982,-151.0,0.00023673,7]
[385298136,1757755849991,-151.0,0.00023673,7]
[385298137,1757755850000,-151.0,0.00023673,7]
[385298138,1757755850010,-1281.80482714,0.00023673,2]
[385298139,1757755850019,-151.981322,0.00023686,7]
[385298140,1757755850028,-151.0,0.00023686,7]
[385298141,1757755850038,-151.0,0.00023686,7]
[385298142,1757755850047,-151.0,0.00023686,7]
[385298143,1757755850056,-215.227223,0.00023686,7]
[385298144,1757755850065,-151.0,0.00023686,7]
[385298145,1757755850075,-161.823539,0.00023686,7]
[385298146,1757755850084,-151.0,0.00023686,7]
[385298147,1757755850094,-151.0,0.00023686,7]
[385298148,1757755850103,-151.0,0.000237,8]
[385298149,1757755850113,-500.0,0.00023773,2]
[385298150,1757755850123,-500.0,0.00023773,2]
[385298151,1757755850133,-501.18299892,0.00023773,2]
[385298152,1757755850143,-500.0,0.00023773,2]
[385298153,1757755850152,-301584.96031571,0.00023786,2]
[385298154,1757755850161,-300.37283,0.00023786,7]
[385298155,1757755850171,-168.373023,0.00023786,7]
[385298156,1757755850180,-151.0,0.00023786,7]
[385298157,1757755850189,-151.0,0.00023786,7]
[385298158,1757755850199,-285.533945,0.00023786,7]
[385298159,1757755850208,-151.791283,0.00023786,7]
[385298160,1757755850217,-151.0,0.00023786,7]
[385298161,1757755850226,-152.790333,0.00023786,7]
[385298162,1757755850236,-173.930104,0.00023786,7]
[385298163,1757755850249,-151.0,0.00023786,7]
[385298164,1757755850258,-151.0,0.00023786,7]
[385298165,1757755850267,-290.86567017,0.00023786,7]
[385298166,1757755850277,-500.0,0.00023786,7]
[385298167,1757755850286,-157.0,0.00023786,7]
[385298168,1757755850295,-157.0,0.00023786,7]
[385298169,1757755850305,-500.0,0.00023786,7]
[385298170,1757755850314,-157.0,0.00023786,7]
[385298171,1757755850324,-500.0,0.00023786,7]
[385298172,1757755850333,-500.0,0.00023786,7]
[385298173,1757755850342,-157.0,0.00023786,7]
[385298174,1757755850351,-157.0,0.00023786,7]
[385298175,1757755850361,-151.0,0.00023835,7]
[385298176,1757755850370,-243.26612764,0.00023847,2]
[385298177,1757755850380,-339.64761388,0.00023882,2]
[385298178,1757755850389,-151.0,0.000239,6]
[385298179,1757755850399,-440.04724089,0.00023901,2]
[385298180,1757755850408,-157.0,0.00023915,2]
[385298181,1757755850418,-157.0,0.00023915,2]
[385298182,1757755850427,-161.01404813,0.00023915,2]
[385298183,1757755850436,-157.0,0.00023915,2]
[385298184,1757755850446,-158.38090722,0.00023915,2]
[385298185,1757755850455,-158.48456646,0.00023915,2]
[385298186,1757755850464,-217.27302185,0.00023915,2]
[385298187,1757755850474,-219.67701505,0.00023915,2]
[385298188,1757755850483,-157.0,0.00023915,2]
[385298189,1757755850492,-157.0,0.00023915,2]
[385298190,1757755850502,-500.0,0.00023915,2]
[385298191,1757755850511,-191.08754469,0.00023915,2]
[385298192,1757755850520,-541.29146551,0.00023935,2]
[385298193,1757755850530,-200.0,0.00023935,2]
[385298194,1757755850539,-251.89630539,0.00023935,5]
[385298195,1757755850548,-500.0,0.00023935,2]
[385298196,1757755850558,-386.12325908,0.00023935,2]
[385298197,1757755850567,-1000.0,0.00023936,2]
[385298198,1757755850576,-562.30123503,0.00023936,2]
[385298199,1757755850586,-173.510086,0.00023936,2]
[385298200,1757755850595,-151.0,0.00023936,2]
[385298201,1757755850604,-151.0,0.00023936,2]
[385298202,1757755850613,-151.0,0.00023936,2]
[385298203,1757755850622,-166.11606898,0.00023936,2]
[385298204,1757755850631,-151.0,0.00023936,7]
[385298205,1757755850640,-151.0,0.00023936,7]
[385298206,1757755850650,-151.0,0.00023936,7]
[385298207,1757755850659,-151.0,0.00023936,7]
[385298208,1757755850668,-151.0,0.00023936,7]
[385298209,1757755850677,-151.0,0.00023936,7]
[385298210,1757755850687,-151.0,0.00023936,7]
[385298211,1757755850696,-151.0,0.00023936,7]
[385298212,1757755850706,-173.122894,0.00023936,7]
[385298213,1757755850715,-2000.0,0.00023936,2]
[385298214,1757755850724,-2000.0,0.00023936,2]
[385298215,1757755850734,-2000.0,0.00023936,2]
[385298216,1757755850743,-2000.0,0.00023936,2]
[385298217,1757755850752,-2000.0,0.00023936,2]
[385298218,1757755850761,-2000.0,0.00023936,2]
[385298219,1757755850770,-2000.0,0.00023936,2]
[385298220,1757755850779,-2000.0,0.00023936,2]
[385298221,1757755850789,-1230.82,0.00023936,2]
[385298222,1757755850798,-500.0,0.00023946,2]
[385298223,1757755850807,-821.05585734,0.00024,10]
[385298224,1757755850816,-151.0,0.00024,5]
[385298225,1757755850825,-233.1568031,0.00024,7]
[385298226,1757755850834,-217.73838971,0.00024,7]
[385298227,1757755850843,-170.498,0.00024002,2]
[385298228,1757755850852,-173.355,0.00024039,5]
[385298229,1757755850861,-647.66342411,0.0002406,7]
[385298230,1757755850870,-157.0,0.0002406,7]
[385298231,1757755850879,-157.0,0.0002406,7]
[385298232,1757755850889,-500.0,0.0002406,7]
[385298233,1757755850898,-157.0,0.0002406,7]
[385298234,1757755850907,-500.0,0.0002406,7]
[385298235,1757755850917,-500.0,0.0002406,7]
[385298236,1757755850926,-282.09562567,0.0002406,7]
[385298237,1757755850936,-157.56279638,0.0002406,7]
[385298238,1757755850945,-502.5421363,0.00024083,2]
[385298239,1757755850954,-501.39610641,0.00024083,2]
[385298240,1757755850963,-1150.66,0.000241,7]
[385298241,1757755850972,-33611.13,0.000241,7]
[385298242,1757755850982,-312.2402573,0.0002411,2]
[385298243,1757755850991,-300.0,0.00024119,20]
[385298244,1757755851000,-300.0,0.00024119,20]
[385298245,1757755851010,-300.0,0.00024119,20]
[385298246,1757755851019,-300.0,0.00024119,20]
[385298247,1757755851028,-300.0,0.00024119,20]
[385298248,1757755851037,-300.0,0.00024119,20]
[385298249,1757755851047,-300.0,0.00024119,20]
[385298250,1757755851056,-4582.2436858,0.00024139,2]
[385298251,1757755851065,-1128.82877778,0.00024168,2]
[385298252,1757755851074,-175.99160857,0.00024189,2]
[385298253,1757755851084,-157.0,0.00024189,2]
[385298254,1757755851093,-158.99457478,0.00024189,2]
[385298255,1757755851102,-157.0,0.00024189,2]
[385298256,1757755851111,-165.33667726,0.00024189,2]
[385298257,1757755851120,-500.0,0.00024189,2]
[385298258,1757755851129,-151.0,0.000242,8]
[385298259,1757755851138,-243.26612764,0.00024273,2]
[385298260,1757755851148,-161.0,0.000243,10]
[385298261,1757755851157,-151.0,0.000243,9]
[385298262,1757755851166,-1000.0,0.00024321,2]
[385298263,1757755851175,-1000.0,0.00024321,2]
[385298264,1757755851185,-1000.0,0.00024326,5]
[385298265,1757755851194,-157.0,0.00024334,7]
[385298266,1757755851202,-157.0,0.00024334,7]
[385298267,1757755851212,-500.0,0.00024334,7]
[385298268,1757755851221,-235.69895917,0.00024334,7]
[385298269,1757755851230,-306.72637128,0.00024334,7]
[385298270,1757755851239,-500.0,0.00024334,7]
[385298271,1757755851249,-367.81052534,0.00024456,2]
[385298272,1757755851258,-1471.24210136,0.00024456,2]
[385298273,1757755851267,-3306.98443333,0.00024456,2]
[385298274,1757755851277,-560.33940141,0.00024456,2]
[385298275,1757755851286,-2241.35760563,0.00024456,2]
[385298276,1757755851295,-5038.01155806,0.00024456,2]
[385298277,1757755851304,-157.73946173,0.00024463,2]
[385298278,1757755851314,-158.55954621,0.00024463,2]
[385298279,1757755851323,-500.0,0.00024463,2]
[385298280,1757755851332,-556.7983587,0.0002449,2]
[385298281,1757755851341,-3192.81,0.000245,7]
[385298282,1757755851350,-151.0,0.000245,7]
[385298283,1757755851359,-187.90494288,0.00024608,7]
[385298284,1757755851368,-157.0,0.00024608,7]
[385298285,1757755851377,-500.0,0.00024608,7]
[385298286,1757755851387,-500.0,0.00024608,7]
[385298287,1757755851396,-160.0,0.00024613,2]
[385298288,1757755851405,-200.0,0.00024656,2]
[385298289,1757755851415,-459.69791367,0.00024657,3]
[385298290,1757755851424,-480.0,0.00024657,3]
[385298291,1757755851432,-480.0,0.00024657,3]
[385298292,1757755851442,-480.0,0.00024657,3]
[385298293,1757755851451,-480.0,0.00024657,3]
[385298294,1757755851460,-1035.06,0.00024657,3]
[385298295,1757755851469,-192.32460183,0.00024657,3]
[385298296,1757755851478,-480.0,0.00024657,3]
[385298297,1757755851487,-500.0,0.00024657,3]
[385298298,1757755851496,-480.0,0.00024657,3]
[385298299,1757755851506,-520.0,0.00024657,3]
[385298300,1757755851515,-480.0,0.00024657,3]
[385298301,1757755851524,-431.88955655,0.00024657,3]
[385298302,1757755851533,-480.0,0.00024657,3]
[385298303,1757755851543,-480.0,0.00024657,3]
[385298304,1757755851552,-480.0,0.00024657,3]
[385298305,1757755851674,-480.0,0.00024657,3]
[385298306,1757755851684,-480.0,0.00024657,3]
[385298307,1757755851693,-480.0,0.00024657,3]
[385298308,1757755851702,-285.39538553,0.00024657,3]
[385298309,1757755851712,-480.0,0.00024657,3]
[385298310,1757755851721,-480.0,0.00024657,3]
[385298311,1757755851730,-480.0,0.00024657,3]
[385298312,1757755851739,-480.0,0.00024657,3]
[385298313,1757755851749,-480.0,0.00024657,3]
[385298314,1757755851758,-480.0,0.00024657,3]
[385298315,1757755851767,-480.0,0.00024657,3]
[385298316,1757755851776,-480.0,0.00024657,3]
[385298317,1757755851785,-480.0,0.00024657,3]
[385298318,1757755851794,-480.0,0.00024657,3]
[385298319,1757755851803,-480.0,0.00024657,3]
[385298320,1757755851813,-480.0,0.00024657,3]
[385298321,1757755851822,-480.0,0.00024657,3]
[385298322,1757755851830,-480.0,0.00024657,3]
[385298323,1757755851839,-480.0,0.00024657,3]
[385298324,1757755851850,-480.0,0.00024657,3]
[385298325,1757755851858,-480.0,0.00024657,3]
[385298326,1757755851868,-480.0,0.00024657,3]
[385298327,1757755851877,-480.0,0.00024657,3]
[385298328,1757755851887,-480.0,0.00024657,3]
[385298329,1757755851897,-480.0,0.00024657,3]
[385298330,1757755851906,-480.0,0.00024657,3]
[385298331,1757755851916,-480.0,0.00024657,3]
[385298332,1757755851926,-480.0,0.00024657,3]
[385298333,1757755851935,-480.0,0.00024657,3]
[385298334,1757755851944,-484.51104247,0.00024657,3]
[385298335,1757755851953,-500.0,0.00024657,3]
[385298336,1757755851962,-500.0,0.00024657,3]
[385298337,1757755851972,-500.0,0.00024657,3]
[385298338,1757755851981,-500.0,0.00024657,3]
[385298339,1757755851990,-500.0,0.00024657,3]
[385298340,1757755852000,-428.69220189,0.00024657,3]
[385298341,1757755852009,-480.0,0.00024657,3]
[385298342,1757755852018,-480.0,0.00024657,3]
[385298343,1757755852028,-480.0,0.00024657,3]
[385298344,1757755852038,-480.0,0.00024657,3]
[385298345,1757755852047,-480.0,0.00024657,3]
[385298346,1757755852056,-480.0,0.00024657,3]
[385298347,1757755852066,-480.0,0.00024657,3]
[385298348,1757755852075,-480.0,0.00024657,3]
[385298349,1757755852085,-480.0,0.00024657,3]
[385298350,1757755852094,-480.0,0.00024657,3]
[385298351,1757755852103,-480.0,0.00024657,3]
[385298352,1757755852112,-480.0,0.00024657,3]
[385298353,1757755852122,-480.0,0.00024657,3]
[385298354,1757755852132,-480.0,0.00024657,3]
[385298355,1757755852142,-480.0,0.00024657,3]
[385298356,1757755852151,-480.0,0.00024657,3]
[385298357,1757755852161,-480.0,0.00024657,3]
[385298358,1757755852170,-480.0,0.00024657,3]
[385298359,1757755852179,-480.0,0.00024657,3]
[385298360,1757755852188,-480.0,0.00024657,3]
[385298361,1757755852198,-480.0,0.00024657,3]
[385298362,1757755852207,-480.0,0.00024657,3]
[385298363,1757755852217,-480.0,0.00024657,3]
[385298364,1757755852226,-480.0,0.00024657,3]
[385298365,1757755852235,-480.0,0.00024657,3]
[385298366,1757755852247,-480.0,0.00024657,3]
[385298367,1757755852256,-483.82466265,0.00024657,3]
[385298368,1757755852265,-480.0,0.00024657,3]
[385298369,1757755852274,-484.68213745,0.00024657,3]
[385298370,1757755852283,-480.0,0.00024657,3]
[385298371,1757755852295,-480.0,0.00024657,3]
[385298372,1757755852304,-480.0,0.00024657,3]
[385298373,1757755852313,-480.0,0.00024657,3]
[385298374,1757755852323,-493.20411081,0.00024657,3]
[385298375,1757755852333,-480.0,0.00024657,3]
[385298376,1757755852343,-480.0,0.00024657,3]
[385298377,1757755852352,-480.0,0.00024657,3]
[385298378,1757755852361,-480.0,0.00024657,3]
[385298379,1757755852374,-480.0,0.00024657,3]
[385298380,1757755852384,-480.0,0.00024657,3]
[385298381,1757755852394,-480.0,0.00024657,3]
[385298382,1757755852403,-480.0,0.00024657,3]
[385298383,1757755852411,-480.0,0.00024657,3]
[385298384,1757755852420,-480.0,0.00024657,3]
[385298385,1757755852429,-480.0,0.00024657,3]
[385298386,1757755852439,-480.0,0.00024657,3]
[385298387,1757755852448,-482.6023969,0.00024657,3]
[385298388,1757755852457,-480.0,0.00024657,3]
[385298389,1757755852467,-480.0,0.00024657,3]
[385298390,1757755852475,-480.0,0.00024657,3]
[385298391,1757755852484,-499.1,0.00024657,3]
[385298392,1757755852495,-480.69,0.00024657,3]
[385298393,1757755852504,-418.87782612,0.00024657,3]
[385298394,1757755852513,-480.0,0.00024657,3]
[385298395,1757755852529,-487.49486222,0.00024657,3]
[385298396,1757755852544,-480.0,0.00024657,3]
[385298397,1757755852554,-598.42586791,0.00024657,3]
[385298398,1757755852563,-480.0,0.00024657,3]
[385298399,1757755852572,-480.0,0.00024657,3]
[385298400,1757755852582,-480.0,0.00024657,3]
[385298401,1757755852591,-480.0,0.00024657,3]
[385298402,1757755852601,-480.0,0.00024657,3]
[385298403,1757755852620,-480.0,0.00024657,3]
[385298404,1757755852642,-487.68588871,0.00024657,3]
[385298405,1757755852655,-480.0,0.00024657,3]
[385298406,1757755852665,-519.58,0.00024657,3]
[385298407,1757755852674,-480.0,0.00024657,3]
[385298408,1757755852683,-465.78444051,0.00024657,3]
[385298409,1757755852692,-480.0,0.00024657,3]
[385298410,1757755852702,-480.0,0.00024657,3]
[385298411,1757755852711,-480.0,0.00024657,3]
[385298412,1757755852721,-480.0,0.00024657,3]
[385298413,1757755852731,-480.0,0.00024657,3]
[385298414,1757755852740,-480.0,0.00024657,3]
[385298415,1757755852749,-619.65,0.00024657,3]
[385298416,1757755852759,-480.0,0.00024657,3]
[385298417,1757755852768,-480.0,0.00024657,3]
[385298418,1757755852777,-480.0,0.00024657,3]
[385298419,1757755852787,-480.0,0.00024657,3]
[385298420,1757755852796,-587.99,0.00024657,3]
[385298421,1757755852805,-480.0,0.00024657,3]
[385298422,1757755852814,-480.0,0.00024657,3]
[385298423,1757755852824,-480.0,0.00024657,3]
[385298424,1757755852833,-212.69842549,0.00024657,3]
[385298425,1757755852843,-516.16557565,0.00024657,3]
[385298426,1757755852852,-480.0,0.00024657,3]
[385298427,1757755852863,-480.0,0.00024657,3]
[385298428,1757755852872,-480.0,0.00024657,3]
[385298429,1757755852881,-523.11,0.00024657,3]
[385298430,1757755852890,-480.0,0.00024657,3]
[385298431,1757755852899,-653.04,0.00024657,3]
[385298432,1757755852908,-480.0,0.00024657,3]
[385298433,1757755852918,-687.36,0.00024657,3]
[385298434,1757755852927,-480.0,0.00024657,3]
[385298435,1757755852938,-480.0,0.00024657,3]
[385298436,1757755852947,-480.0,0.00024657,3]